[Event "*** Titled Tuesday Blitz"]
[Site "Chess.com"]
[Date "2020.04.21"]
[Round "5"]
[White "Gajuchess"]
[Black "agus_k"]
[Result "0-1"]
[WhiteElo "2718"]
[BlackElo "2606"]
[TimeControl "180+1"]
[EndTime "10:56:49 PDT"]
[Termination "agus_k won on time"]

1. d4 {[%clk 0:02:59.1]} 1... Nf6 {[%clk 0:02:59.4]} 2. c4 {[%clk 0:02:59.2]}
2... e6 {[%clk 0:02:59]} 3. Nf3 {[%clk 0:02:59.3]} 3... b6 {[%clk 0:02:58.7]} 4.
e3 {[%clk 0:02:58.4]} 4... Bb7 {[%clk 0:02:58.9]} 5. Bd3 {[%clk 0:02:58.4]} 5...
g6 {[%clk 0:02:58.1]} 6. Nc3 {[%clk 0:02:56.8]} 6... Bg7 {[%clk 0:02:58.7]} 7.
e4 {[%clk 0:02:56.2]} 7... O-O {[%clk 0:02:58]} 8. h3 {[%clk 0:02:53.9]} 8... d5
{[%clk 0:02:55.1]} 9. e5 {[%clk 0:02:53.1]} 9... Ne4 {[%clk 0:02:54.6]} 10. h4
{[%clk 0:02:49.4]} 10... c5 {[%clk 0:02:46.4]} 11. cxd5 {[%clk 0:02:33]} 11...
exd5 {[%clk 0:02:40.1]} 12. dxc5 {[%clk 0:02:19.1]} 12... Nxc3 {[%clk
0:02:33.2]} 13. bxc3 {[%clk 0:02:18]} 13... bxc5 {[%clk 0:02:27.8]} 14. h5
{[%clk 0:02:18]} 14... Nd7 {[%clk 0:02:22]} 15. hxg6 {[%clk 0:01:54.8]} 15...
fxg6 {[%clk 0:02:19.2]} 16. e6 {[%clk 0:01:51.4]} 16... Qe7 {[%clk 0:02:07.8]}
17. Kf1 {[%clk 0:01:35]} 17... Qxe6 {[%clk 0:02:05.5]} 18. Rxh7 {[%clk
0:01:35.2]} 18... Rxf3 {[%clk 0:02:00.9]} 19. Rxg7+ {[%clk 0:01:35.1]} 19...
Kxg7 {[%clk 0:02:01.8]} 20. Qxf3 {[%clk 0:01:35.4]} 20... Rh8 {[%clk 0:01:47.9]}
21. Kg1 {[%clk 0:01:25.5]} 21... Ne5 {[%clk 0:01:44.9]} 22. Qe2 {[%clk
0:01:18.5]} 22... Qf6 {[%clk 0:01:32.7]} 23. Rb1 {[%clk 0:01:18.3]} 23... Ba8
{[%clk 0:01:29.2]} 24. Bc2 {[%clk 0:01:14.3]} 24... d4 {[%clk 0:01:24.3]} 25. f4
{[%clk 0:00:59.6]} 25... Nf7 {[%clk 0:00:57]} 26. Qf2 {[%clk 0:00:59.9]} 26...
Nh6 {[%clk 0:00:54.2]} 27. f5 {[%clk 0:00:54.3]} 27... Ng4 {[%clk 0:00:52]} 28.
Qg3 {[%clk 0:00:54.2]} 28... Rh2 {[%clk 0:00:48.1]} 29. Qc7+ {[%clk 0:00:45.7]}
29... Qf7 {[%clk 0:00:42.2]} 30. f6+ {[%clk 0:00:46]} 30... Kxf6 {[%clk
0:00:35.4]} 31. Qxh2 {[%clk 0:00:03.7]} 31... Nxh2 {[%clk 0:00:33.1]} 32. Kxh2
{[%clk 0:00:04]} 32... Qd5 {[%clk 0:00:26.3]} 0-1

[Event "*** Titled Tuesday Blitz"]
[Site "Chess.com"]
[Date "2020.04.21"]
[Round "5"]
[White "Morshynska"]
[Black "steepedgames"]
[Result "0-1"]
[WhiteElo "2116"]
[BlackElo "2333"]
[TimeControl "180+1"]
[EndTime "10:56:51 PDT"]
[Termination "steepedgames won on time"]

1. e4 {[%clk 0:03:00.9]} 1... e6 {[%clk 0:02:59]} 2. d3 {[%clk 0:02:56.7]} 2...
d5 {[%clk 0:02:54.8]} 3. Nd2 {[%clk 0:02:56.7]} 3... Nf6 {[%clk 0:02:55.4]} 4.
Qe2 {[%clk 0:02:52.1]} 4... Nc6 {[%clk 0:02:54.3]} 5. Ngf3 {[%clk 0:02:48.1]}
5... dxe4 {[%clk 0:02:54.2]} 6. dxe4 {[%clk 0:02:49]} 6... Bc5 {[%clk
0:02:53.6]} 7. Nb3 {[%clk 0:02:44.9]} 7... Bb6 {[%clk 0:02:53.2]} 8. Be3 {[%clk
0:02:41.5]} 8... e5 {[%clk 0:02:52.1]} 9. h3 {[%clk 0:02:31.7]} 9... O-O {[%clk
0:02:43.1]} 10. g4 {[%clk 0:02:17.9]} 10... Qe7 {[%clk 0:02:37.1]} 11. c3 {[%clk
0:02:12.7]} 11... Be6 {[%clk 0:02:19.2]} 12. Ng5 {[%clk 0:02:00.5]} 12... Bd7
{[%clk 0:02:04.7]} 13. Bg2 {[%clk 0:01:49.8]} 13... Rfe8 {[%clk 0:01:40.8]} 14.
O-O {[%clk 0:01:35.6]} 14... Rad8 {[%clk 0:01:37.7]} 15. Kh1 {[%clk 0:01:24.8]}
15... Bxe3 {[%clk 0:01:19.1]} 16. Qxe3 {[%clk 0:01:25.7]} 16... Bxg4 {[%clk
0:01:18.4]} 17. f4 {[%clk 0:00:58.4]} 17... exf4 {[%clk 0:01:11.2]} 18. Rxf4
{[%clk 0:00:59.3]} 18... Bh5 {[%clk 0:01:06.5]} 19. Qg1 {[%clk 0:00:25.6]} 19...
Bg6 {[%clk 0:01:02.9]} 20. Raf1 {[%clk 0:00:16.8]} 20... Nh5 {[%clk 0:00:56.6]}
21. Rg4 {[%clk 0:00:15.4]} 21... Ne5 {[%clk 0:00:49.3]} 22. Bf3 {[%clk
0:00:09.8]} 22... Nxg4 {[%clk 0:00:47.2]} 23. Qxg4 {[%clk 0:00:10.7]} 23... Qd7
{[%clk 0:00:43.4]} 24. Qg2 {[%clk 0:00:08.7]} 24... Nf4 {[%clk 0:00:41.4]} 25.
Qg3 {[%clk 0:00:08.8]} 25... Ne6 {[%clk 0:00:41.3]} 26. h4 {[%clk 0:00:07.7]}
26... Nxg5 {[%clk 0:00:41.1]} 27. hxg5 {[%clk 0:00:07.9]} 27... Qd6 {[%clk
0:00:40.6]} 28. Qg2 {[%clk 0:00:07.4]} 28... Re5 {[%clk 0:00:39.3]} 29. Nd4
{[%clk 0:00:06.3]} 29... Qe7 {[%clk 0:00:36.4]} 30. Nf5 {[%clk 0:00:05.2]} 30...
Bxf5 {[%clk 0:00:32.1]} 31. exf5 {[%clk 0:00:06.1]} 31... Re1 {[%clk 0:00:31.8]}
32. Rg1 {[%clk 0:00:07]} 32... Rxg1+ {[%clk 0:00:31.4]} 33. Qxg1 {[%clk
0:00:06.8]} 33... Rd3 {[%clk 0:00:29.8]} 34. Qg2 {[%clk 0:00:05.6]} 34... Qe1+
{[%clk 0:00:28]} 35. Kh2 {[%clk 0:00:05.3]} 35... Qe5+ {[%clk 0:00:26.6]} 36.
Kh3 {[%clk 0:00:03.5]} 36... Qxf5+ {[%clk 0:00:26.3]} 37. Qg4 {[%clk 0:00:01.6]}
37... Rxf3+ {[%clk 0:00:26]} 0-1

[Event "*** Titled Tuesday Blitz"]
[Site "Chess.com"]
[Date "2020.04.21"]
[Round "5"]
[White "Algeriano22"]
[Black "sergiochess83"]
[Result "0-1"]
[WhiteElo "2626"]
[BlackElo "2815"]
[TimeControl "180+1"]
[EndTime "10:56:52 PDT"]
[Termination "sergiochess83 won on time"]

1. e4 {[%clk 0:03:00.9]} 1... c6 {[%clk 0:02:59]} 2. d4 {[%clk 0:03:00.1]} 2...
d5 {[%clk 0:02:58.7]} 3. e5 {[%clk 0:03:00.6]} 3... Bf5 {[%clk 0:02:58.3]} 4. h4
{[%clk 0:03:00.4]} 4... h6 {[%clk 0:02:57.6]} 5. g4 {[%clk 0:02:34.4]} 5... Bd7
{[%clk 0:02:54.8]} 6. h5 {[%clk 0:02:34.1]} 6... c5 {[%clk 0:02:51]} 7. c3
{[%clk 0:02:34.1]} 7... Nc6 {[%clk 0:02:49.9]} 8. f4 {[%clk 0:02:33.7]} 8...
cxd4 {[%clk 0:02:46.2]} 9. cxd4 {[%clk 0:02:25]} 9... Qb6 {[%clk 0:02:46.3]} 10.
Be3 {[%clk 0:02:22.1]} 10... Qxb2 {[%clk 0:02:42.8]} 11. Nd2 {[%clk 0:02:22.6]}
11... Bxg4 {[%clk 0:02:41.7]} 12. Rb1 {[%clk 0:01:44.5]} 12... Bxd1 {[%clk
0:01:32.5]} 13. Rxb2 {[%clk 0:01:43.7]} 13... Ba4 {[%clk 0:01:33.1]} 14. Rxb7
{[%clk 0:01:41.8]} 14... e6 {[%clk 0:01:33.4]} 15. Ne2 {[%clk 0:01:27.4]} 15...
Bb4 {[%clk 0:01:33.5]} 16. f5 {[%clk 0:01:25.5]} 16... Nge7 {[%clk 0:01:24.1]}
17. fxe6 {[%clk 0:01:15.7]} 17... fxe6 {[%clk 0:01:23.5]} 18. a3 {[%clk
0:01:04.5]} 18... Bxa3 {[%clk 0:00:46]} 19. Nc3 {[%clk 0:00:47.4]} 19... Nf5
{[%clk 0:00:46.1]} 20. Nxa4 {[%clk 0:00:41]} 20... Nxe3 {[%clk 0:00:46]} 21. Bb5
{[%clk 0:00:41.6]} 21... Nc2+ {[%clk 0:00:44.2]} 22. Kd1 {[%clk 0:00:20.3]}
22... Nxd4 {[%clk 0:00:45.1]} 23. Bxc6+ {[%clk 0:00:15.3]} 23... Nxc6 {[%clk
0:00:46]} 24. Rxg7 {[%clk 0:00:15.9]} 24... Be7 {[%clk 0:00:41.6]} 25. Nb3
{[%clk 0:00:12.4]} 25... Rb8 {[%clk 0:00:39.6]} 26. Nbc5 {[%clk 0:00:12.5]}
26... Rb1+ {[%clk 0:00:35.8]} 27. Kc2 {[%clk 0:00:07]} 27... Rxh1 {[%clk
0:00:36.7]} 28. Nxe6 {[%clk 0:00:07.7]} 28... Rxh5 {[%clk 0:00:31.7]} 29. Nc7+
{[%clk 0:00:04.2]} 29... Kd8 {[%clk 0:00:32]} 30. Nxd5 {[%clk 0:00:03.6]} 30...
Rxe5 {[%clk 0:00:31.5]} 31. Nac3 {[%clk 0:00:04.5]} 31... h5 {[%clk 0:00:30.3]}
32. Nf4 {[%clk 0:00:03.9]} 32... h4 {[%clk 0:00:27.9]} 33. Ng6 {[%clk
0:00:03.9]} 33... Rg5 {[%clk 0:00:28.1]} 34. Ne4 {[%clk 0:00:01.9]} 34... Rxg6
{[%clk 0:00:26.9]} 35. Kd3 {[%clk 0:00:02.8]} 35... h3 {[%clk 0:00:27.7]} 36.
Rxg6 {[%clk 0:00:02.4]} 36... Ne5+ {[%clk 0:00:27.4]} 0-1

[Event "*** Titled Tuesday Blitz"]
[Site "Chess.com"]
[Date "2020.04.21"]
[Round "5"]
[White "JiaHaoxiang"]
[Black "vugarrasulov"]
[Result "1/2-1/2"]
[WhiteElo "2579"]
[BlackElo "2717"]
[TimeControl "180+1"]
[EndTime "10:56:53 PDT"]
[Termination "Game drawn by stalemate"]

1. Nf3 {[%clk 0:03:00.9]} 1... Nf6 {[%clk 0:02:59.1]} 2. c4 {[%clk 0:02:59.8]}
2... g6 {[%clk 0:02:59.2]} 3. d4 {[%clk 0:02:58.8]} 3... Bg7 {[%clk 0:02:59.2]}
4. g3 {[%clk 0:02:58.2]} 4... O-O {[%clk 0:02:58.8]} 5. Bg2 {[%clk 0:02:57.9]}
5... d5 {[%clk 0:02:59.3]} 6. O-O {[%clk 0:02:56.9]} 6... Nc6 {[%clk 0:02:58.8]}
7. e3 {[%clk 0:02:48.2]} 7... dxc4 {[%clk 0:02:54.7]} 8. Na3 {[%clk 0:02:46.7]}
8... e5 {[%clk 0:02:46.3]} 9. dxe5 {[%clk 0:02:39.1]} 9... Qxd1 {[%clk
0:02:45.9]} 10. Rxd1 {[%clk 0:02:38.2]} 10... Ng4 {[%clk 0:02:46.8]} 11. Nxc4
{[%clk 0:02:32.2]} 11... Be6 {[%clk 0:02:47.3]} 12. h3 {[%clk 0:02:04.6]} 12...
Nxf2 {[%clk 0:02:45.2]} 13. Kxf2 {[%clk 0:02:02.9]} 13... Bxc4 {[%clk
0:02:45.7]} 14. b3 {[%clk 0:02:02.6]} 14... Be6 {[%clk 0:02:45.1]} 15. Bb2
{[%clk 0:02:02.1]} 15... Rfd8 {[%clk 0:02:45.5]} 16. Nd4 {[%clk 0:02:00.3]}
16... Nxd4 {[%clk 0:02:36.3]} 17. exd4 {[%clk 0:02:01.2]} 17... Bd5 {[%clk
0:02:35.8]} 18. Bf1 {[%clk 0:01:56.5]} 18... a5 {[%clk 0:02:33]} 19. Rd3 {[%clk
0:01:23.7]} 19... a4 {[%clk 0:02:31.8]} 20. b4 {[%clk 0:01:21.9]} 20... a3
{[%clk 0:02:18.4]} 21. Rxa3 {[%clk 0:01:19.9]} 21... Rxa3 {[%clk 0:02:17.4]} 22.
Bxa3 {[%clk 0:01:20.8]} 22... Bf8 {[%clk 0:02:15.1]} 23. Rc1 {[%clk 0:01:12.9]}
23... c6 {[%clk 0:02:12.8]} 24. Rc3 {[%clk 0:00:54.9]} 24... Bxa2 {[%clk
0:02:10.8]} 25. b5 {[%clk 0:00:52.5]} 25... cxb5 {[%clk 0:02:01.3]} 26. Bxf8
{[%clk 0:00:51.8]} 26... Kxf8 {[%clk 0:02:02.2]} 27. Ke3 {[%clk 0:00:47.1]}
27... b4 {[%clk 0:01:58]} 28. Rc7 {[%clk 0:00:45.3]} 28... Bd5 {[%clk
0:01:56.9]} 29. Bc4 {[%clk 0:00:43.4]} 29... Bxc4 {[%clk 0:01:41.8]} 30. Rxc4
{[%clk 0:00:42.9]} 30... b5 {[%clk 0:01:40.3]} 31. Rxb4 {[%clk 0:00:41.7]} 31...
Rb8 {[%clk 0:01:40.8]} 32. Ke4 {[%clk 0:00:41]} 32... Ke7 {[%clk 0:01:41.4]} 33.
d5 {[%clk 0:00:40.9]} 33... f6 {[%clk 0:01:38]} 34. exf6+ {[%clk 0:00:40.5]}
34... Kxf6 {[%clk 0:01:37.8]} 35. Kd4 {[%clk 0:00:41.1]} 35... Kf5 {[%clk
0:01:34.6]} 36. g4+ {[%clk 0:00:36.1]} 36... Kf6 {[%clk 0:01:32.9]} 37. h4
{[%clk 0:00:33.1]} 37... h5 {[%clk 0:01:32.7]} 38. gxh5 {[%clk 0:00:32.3]} 38...
gxh5 {[%clk 0:01:33.6]} 39. Ke4 {[%clk 0:00:30.3]} 39... Ke7 {[%clk 0:01:24.9]}
40. Ke5 {[%clk 0:00:30.6]} 40... Kd7 {[%clk 0:01:25.4]} 41. Ke4 {[%clk 0:00:15]}
41... Kd6 {[%clk 0:01:25]} 42. Kd4 {[%clk 0:00:15.5]} 42... Rb7 {[%clk
0:01:25.1]} 43. Rb3 {[%clk 0:00:15.2]} 43... b4 {[%clk 0:01:25.1]} 44. Kc4
{[%clk 0:00:15.6]} 44... Rg7 {[%clk 0:01:12.3]} 45. Rxb4 {[%clk 0:00:15.5]}
45... Rg4+ {[%clk 0:01:12.2]} 46. Kc3 {[%clk 0:00:15.9]} 46... Ke5 {[%clk
0:01:01.2]} 47. Rxg4 {[%clk 0:00:13.6]} 47... hxg4 {[%clk 0:01:01.6]} 48. d6
{[%clk 0:00:14.3]} 48... Kxd6 {[%clk 0:00:57.3]} 49. Kd4 {[%clk 0:00:14.6]}
49... Ke6 {[%clk 0:00:57.2]} 50. Ke4 {[%clk 0:00:14.9]} 50... g3 {[%clk
0:00:57.2]} 51. Kf3 {[%clk 0:00:15.3]} 51... Kf5 {[%clk 0:00:57.8]} 52. Kxg3
{[%clk 0:00:15.7]} 52... Kg6 {[%clk 0:00:58.7]} 53. h5+ {[%clk 0:00:16]} 53...
Kh6 {[%clk 0:00:59.6]} 54. Kh4 {[%clk 0:00:16.2]} 54... Kh7 {[%clk 0:00:59.7]}
55. Kg5 {[%clk 0:00:16.9]} 55... Kg7 {[%clk 0:01:00.6]} 56. h6+ {[%clk
0:00:17.5]} 56... Kh7 {[%clk 0:01:01.5]} 57. Kh5 {[%clk 0:00:17.9]} 57... Kh8
{[%clk 0:01:02.4]} 58. Kg6 {[%clk 0:00:18.6]} 58... Kg8 {[%clk 0:01:03.3]} 59.
h7+ {[%clk 0:00:19.4]} 59... Kh8 {[%clk 0:01:04.2]} 60. Kh6 {[%clk 0:00:20.2]}
1/2-1/2

[Event "*** Titled Tuesday Blitz"]
[Site "Chess.com"]
[Date "2020.04.21"]
[Round "5"]
[White "Raja3401"]
[Black "nabukatnezarr"]
[Result "1-0"]
[WhiteElo "2704"]
[BlackElo "2489"]
[TimeControl "180+1"]
[EndTime "10:56:54 PDT"]
[Termination "Raja3401 won on time"]

1. e4 {[%clk 0:03:00.9]} 1... c5 {[%clk 0:02:57.2]} 2. Nf3 {[%clk 0:03:00]} 2...
Nc6 {[%clk 0:02:57.8]} 3. Bb5 {[%clk 0:02:57.7]} 3... a6 {[%clk 0:02:53.2]} 4.
Bxc6 {[%clk 0:02:54.9]} 4... dxc6 {[%clk 0:02:54.1]} 5. O-O {[%clk 0:02:53.4]}
5... Qc7 {[%clk 0:02:54.4]} 6. c3 {[%clk 0:02:48.3]} 6... e5 {[%clk 0:02:53.3]}
7. d4 {[%clk 0:02:45.6]} 7... exd4 {[%clk 0:02:34.2]} 8. cxd4 {[%clk 0:02:46.5]}
8... cxd4 {[%clk 0:02:34.5]} 9. Nxd4 {[%clk 0:02:47.4]} 9... Nf6 {[%clk
0:02:35]} 10. e5 {[%clk 0:02:13.1]} 10... Nd5 {[%clk 0:02:34.4]} 11. Nd2 {[%clk
0:02:03.6]} 11... Be7 {[%clk 0:02:21.9]} 12. f4 {[%clk 0:01:55.6]} 12... O-O
{[%clk 0:02:16.8]} 13. N2f3 {[%clk 0:01:55]} 13... Bc5 {[%clk 0:02:08.5]} 14.
Kh1 {[%clk 0:01:54.5]} 14... Bg4 {[%clk 0:01:47.1]} 15. h3 {[%clk 0:01:54.1]}
15... Bxf3 {[%clk 0:01:47]} 16. Nxf3 {[%clk 0:01:55]} 16... Rad8 {[%clk
0:01:47.2]} 17. Qc2 {[%clk 0:01:54.7]} 17... Ba7 {[%clk 0:01:44.2]} 18. f5
{[%clk 0:01:50.2]} 18... Nb4 {[%clk 0:01:28.3]} 19. Qe4 {[%clk 0:01:48.4]} 19...
Nd3 {[%clk 0:01:26.8]} 20. f6 {[%clk 0:01:43.7]} 20... Rfe8 {[%clk 0:01:03.3]}
21. fxg7 {[%clk 0:01:28.1]} 21... Nf2+ {[%clk 0:00:33.8]} 22. Rxf2 {[%clk
0:01:27.9]} 22... Rd1+ {[%clk 0:00:29.2]} 23. Kh2 {[%clk 0:01:28.1]} 23... Bxf2
{[%clk 0:00:27.7]} 24. Qc2 {[%clk 0:00:32.6]} 24... Bg1+ {[%clk 0:00:20.7]} 25.
Kh1 {[%clk 0:00:32.9]} 25... Red8 {[%clk 0:00:10.8]} 26. Nxg1 {[%clk 0:00:26.6]}
26... Qxe5 {[%clk 0:00:09.3]} 27. Bf4 {[%clk 0:00:23.1]} 27... Qe1 {[%clk
0:00:05.7]} 28. Rxd1 {[%clk 0:00:19.5]} 28... Rxd1 {[%clk 0:00:06.6]} 29. Bh2
{[%clk 0:00:19.1]} 29... Kxg7 {[%clk 0:00:05.6]} 30. Qf5 {[%clk 0:00:18.1]}
30... Rb1 {[%clk 0:00:03.5]} 31. Be5+ {[%clk 0:00:17.8]} 31... Kf8 {[%clk
0:00:03.2]} 32. Bd6+ {[%clk 0:00:14.3]} 32... Kg7 {[%clk 0:00:01.4]} 33. Qg5+
{[%clk 0:00:13.9]} 1-0

[Event "*** Titled Tuesday Blitz"]
[Site "Chess.com"]
[Date "2020.04.21"]
[Round "5"]
[White "Chessalary"]
[Black "flomarechot"]
[Result "1-0"]
[WhiteElo "2252"]
[BlackElo "2104"]
[TimeControl "180+1"]
[EndTime "10:56:54 PDT"]
[Termination "Chessalary won by resignation"]

1. e4 {[%clk 0:03:00.9]} 1... c6 {[%clk 0:02:57.3]} 2. Nf3 {[%clk 0:03:01.1]}
2... d5 {[%clk 0:02:58.2]} 3. exd5 {[%clk 0:03:01.4]} 3... cxd5 {[%clk
0:02:59.1]} 4. d4 {[%clk 0:03:01.8]} 4... Nf6 {[%clk 0:02:59.6]} 5. c3 {[%clk
0:03:02.7]} 5... Bg4 {[%clk 0:02:59.4]} 6. Bd3 {[%clk 0:03:03.6]} 6... e6 {[%clk
0:02:59.3]} 7. O-O {[%clk 0:03:03.8]} 7... Be7 {[%clk 0:02:59]} 8. Bf4 {[%clk
0:03:03.8]} 8... O-O {[%clk 0:02:59.1]} 9. Nbd2 {[%clk 0:03:03.9]} 9... Nc6
{[%clk 0:02:59.2]} 10. h3 {[%clk 0:03:04.5]} 10... Bh5 {[%clk 0:02:59]} 11. Re1
{[%clk 0:03:05]} 11... Bg6 {[%clk 0:02:58.8]} 12. Nf1 {[%clk 0:03:04.2]} 12...
Qb6 {[%clk 0:02:54.6]} 13. Bxg6 {[%clk 0:03:02.3]} 13... hxg6 {[%clk 0:02:54.5]}
14. Qb3 {[%clk 0:03:03.2]} 14... Qxb3 {[%clk 0:02:49.3]} 15. axb3 {[%clk
0:03:04.1]} 15... Ne4 {[%clk 0:02:45.3]} 16. Ng3 {[%clk 0:03:02.8]} 16... Nxg3
{[%clk 0:02:37.7]} 17. Bxg3 {[%clk 0:03:03.7]} 17... Bf6 {[%clk 0:02:29.9]} 18.
b4 {[%clk 0:03:02.1]} 18... a6 {[%clk 0:02:29.2]} 19. Ne5 {[%clk 0:03:00.9]}
19... Bxe5 {[%clk 0:02:27.4]} 20. Bxe5 {[%clk 0:03:01.8]} 20... Nxe5 {[%clk
0:02:27.1]} 21. Rxe5 {[%clk 0:03:02.7]} 21... Rac8 {[%clk 0:02:20.9]} 22. Ra5
{[%clk 0:02:59.6]} 22... Rc7 {[%clk 0:02:04.7]} 23. Kf1 {[%clk 0:02:59.4]} 23...
Rfc8 {[%clk 0:02:03.7]} 24. Ke2 {[%clk 0:02:59.6]} 24... Kf8 {[%clk 0:02:03.6]}
25. Kd3 {[%clk 0:02:59.9]} 25... Ke7 {[%clk 0:02:04]} 26. f4 {[%clk 0:02:56.1]}
26... Kd6 {[%clk 0:01:59.4]} 27. b5 {[%clk 0:02:55.6]} 27... axb5 {[%clk
0:01:58.7]} 28. Rxb5 {[%clk 0:02:55.5]} 28... Ra8 {[%clk 0:01:59.3]} 29. g4
{[%clk 0:02:52.4]} 29... Ra1 {[%clk 0:01:58.9]} 30. f5 {[%clk 0:02:52.5]} 30...
gxf5 {[%clk 0:01:59.8]} 31. gxf5 {[%clk 0:02:53.1]} 31... Rh1 {[%clk 0:01:58.6]}
32. fxe6 {[%clk 0:02:52.3]} 32... fxe6 {[%clk 0:01:58.5]} 33. Rb6+ {[%clk
0:02:51.9]} 33... Rc6 {[%clk 0:01:58.4]} 34. Rxb7 {[%clk 0:02:50.8]} 34... Rxh3+
{[%clk 0:01:58.3]} 35. Kc2 {[%clk 0:02:50.4]} 35... Rg3 {[%clk 0:01:52.1]} 36.
Rh5 {[%clk 0:02:48]} 36... Rg4 {[%clk 0:01:48.9]} 37. Kb3 {[%clk 0:02:45.4]}
37... Rc7 {[%clk 0:01:39.9]} 38. Rb6+ {[%clk 0:02:43.3]} 38... Rc6 {[%clk
0:01:39.6]} 39. Rb8 {[%clk 0:02:43.8]} 39... Rg2 {[%clk 0:01:31.4]} 40. Rhh8
{[%clk 0:02:42.8]} 40... Rc7 {[%clk 0:01:29.7]} 41. Rhe8 {[%clk 0:02:35.5]}
41... Re2 {[%clk 0:01:02.8]} 42. Red8+ {[%clk 0:02:22.3]} 42... Rd7 {[%clk
0:01:02.4]} 43. Rxd7+ {[%clk 0:02:21.7]} 43... Kxd7 {[%clk 0:01:03.3]} 44. Rb7+
{[%clk 0:02:22.1]} 44... Kc6 {[%clk 0:01:00.7]} 45. Rxg7 {[%clk 0:02:23]} 45...
e5 {[%clk 0:01:00.1]} 46. dxe5 {[%clk 0:02:20.7]} 46... Rxe5 {[%clk 0:01:01]}
47. Kc2 {[%clk 0:02:20.7]} 47... Re2+ {[%clk 0:01:00]} 48. Kb3 {[%clk
0:02:20.1]} 48... Re3 {[%clk 0:00:59.2]} 49. Rg8 {[%clk 0:02:20.2]} 49... d4
{[%clk 0:00:57.3]} 50. Rc8+ {[%clk 0:02:20.4]} 50... Kb7 {[%clk 0:00:56.7]} 51.
Rc4 {[%clk 0:02:19.2]} 51... dxc3 {[%clk 0:00:56.6]} 52. bxc3 {[%clk 0:02:20.1]}
52... Re1 {[%clk 0:00:56.3]} 53. Kb4 {[%clk 0:02:19.8]} 53... Kb6 {[%clk
0:00:55.3]} 54. Rh4 {[%clk 0:02:18.1]} 54... Rb1+ {[%clk 0:00:53.6]} 55. Kc4
{[%clk 0:02:17.9]} 55... Rf1 {[%clk 0:00:51.2]} 56. Rh6+ {[%clk 0:02:17.9]}
56... Kc7 {[%clk 0:00:51.7]} 57. Kb5 {[%clk 0:02:16.4]} 57... Rf5+ {[%clk
0:00:51.3]} 58. Kb4 {[%clk 0:02:16.6]} 58... Rf1 {[%clk 0:00:50.1]} 59. c4
{[%clk 0:02:16.2]} 59... Rf4 {[%clk 0:00:50]} 60. Kb5 {[%clk 0:02:15.3]} 60...
Rf5+ {[%clk 0:00:49.6]} 61. c5 {[%clk 0:02:15]} 61... Rf7 {[%clk 0:00:48.7]} 62.
Ra6 {[%clk 0:02:14.3]} 62... Rf1 {[%clk 0:00:48.3]} 63. Ra7+ {[%clk 0:02:13.6]}
63... Kb8 {[%clk 0:00:48.7]} 64. Rh7 {[%clk 0:02:14.2]} 64... Rf8 {[%clk
0:00:45]} 65. Kb6 {[%clk 0:02:12.9]} 65... Rf6+ {[%clk 0:00:43.8]} 66. c6 {[%clk
0:02:12.5]} 66... Rf8 {[%clk 0:00:40.3]} 67. Ra7 {[%clk 0:02:12.5]} 67... Rf6
{[%clk 0:00:33.4]} 68. Rh7 {[%clk 0:02:05.8]} 68... Rf8 {[%clk 0:00:33.2]} 69.
Kc5 {[%clk 0:01:53.6]} 69... Rf5+ {[%clk 0:00:32.7]} 70. Kd6 {[%clk 0:01:53.7]}
70... Rf6+ {[%clk 0:00:33]} 71. Kd5 {[%clk 0:01:53.9]} 71... Rf5+ {[%clk
0:00:31.3]} 72. Ke6 {[%clk 0:01:53.9]} 72... Rc5 {[%clk 0:00:24.9]} 73. Kd6
{[%clk 0:01:50.1]} 73... Rc1 {[%clk 0:00:21.6]} 74. Rh8+ {[%clk 0:01:50.1]}
74... Ka7 {[%clk 0:00:22]} 75. c7 {[%clk 0:01:50]} 75... Rd1+ {[%clk 0:00:20.1]}
76. Ke5 {[%clk 0:01:49]} 76... Kb7 {[%clk 0:00:19.7]} 77. c8=Q+ {[%clk
0:01:47.8]} 1-0

[Event "*** Titled Tuesday Blitz"]
[Site "Chess.com"]
[Date "2020.04.21"]
[Round "5"]
[White "Sjakkerntobi"]
[Black "earling8018"]
[Result "0-1"]
[WhiteElo "2212"]
[BlackElo "2055"]
[TimeControl "180+1"]
[EndTime "10:56:54 PDT"]
[Termination "earling8018 won by resignation"]

1. e4 {[%clk 0:03:00.9]} 1... e5 {[%clk 0:02:32.8]} 2. Nf3 {[%clk 0:03:00.1]}
2... Nc6 {[%clk 0:02:32.7]} 3. Bb5 {[%clk 0:02:59.8]} 3... a6 {[%clk 0:02:32.6]}
4. Ba4 {[%clk 0:03:00.1]} 4... Nf6 {[%clk 0:02:33.1]} 5. O-O {[%clk 0:03:00.8]}
5... Be7 {[%clk 0:02:33.5]} 6. Re1 {[%clk 0:03:01.5]} 6... b5 {[%clk 0:02:33.9]}
7. Bb3 {[%clk 0:03:02.3]} 7... d6 {[%clk 0:02:34.3]} 8. a4 {[%clk 0:03:01.9]}
8... Bb7 {[%clk 0:02:33.2]} 9. d3 {[%clk 0:03:01.8]} 9... O-O {[%clk 0:02:30.5]}
10. Nbd2 {[%clk 0:03:02.2]} 10... Qd7 {[%clk 0:02:20.4]} 11. Nf1 {[%clk
0:03:01.7]} 11... Na5 {[%clk 0:02:20.2]} 12. Ba2 {[%clk 0:03:01.4]} 12... c5
{[%clk 0:02:17.8]} 13. Ng3 {[%clk 0:03:01]} 13... Rfe8 {[%clk 0:02:07.3]} 14.
Bd2 {[%clk 0:03:00.3]} 14... b4 {[%clk 0:02:03.9]} 15. Ng5 {[%clk 0:02:55]}
15... Rf8 {[%clk 0:02:00.7]} 16. Nf5 {[%clk 0:02:42.9]} 16... Nc6 {[%clk
0:01:57.5]} 17. c3 {[%clk 0:02:37.5]} 17... a5 {[%clk 0:01:56.3]} 18. f4 {[%clk
0:02:08.7]} 18... h6 {[%clk 0:01:53.3]} 19. Nf3 {[%clk 0:02:07.5]} 19... Rfe8
{[%clk 0:01:39.9]} 20. Rf1 {[%clk 0:02:01.6]} 20... Bf8 {[%clk 0:01:38.8]} 21.
Qe1 {[%clk 0:01:36.6]} 21... Ba6 {[%clk 0:01:37.9]} 22. Qg3 {[%clk 0:01:31]}
22... Kh8 {[%clk 0:01:04.7]} 23. Ne1 {[%clk 0:01:03.6]} 23... Nh5 {[%clk
0:00:54.4]} 24. Qh3 {[%clk 0:01:02.4]} 24... Nxf4 {[%clk 0:00:52.8]} 25. Bxf4
{[%clk 0:01:03.3]} 25... exf4 {[%clk 0:00:53.1]} 26. Rxf4 {[%clk 0:01:04.2]}
26... g6 {[%clk 0:00:43.9]} 27. Ne3 {[%clk 0:00:52.5]} 27... Qxh3 {[%clk
0:00:43.5]} 28. gxh3 {[%clk 0:00:53.4]} 28... Ne5 {[%clk 0:00:20.2]} 29. Bxf7
{[%clk 0:00:48.2]} 29... Re7 {[%clk 0:00:17.2]} 30. Bd5 {[%clk 0:00:47.2]} 30...
Rd8 {[%clk 0:00:14.4]} 31. d4 {[%clk 0:00:36.1]} 31... cxd4 {[%clk 0:00:14.8]}
32. cxd4 {[%clk 0:00:37]} 32... Nd3 {[%clk 0:00:15.3]} 33. Nxd3 {[%clk
0:00:35.7]} 33... Bxd3 {[%clk 0:00:16]} 34. Rd1 {[%clk 0:00:32.9]} 34... Ba6
{[%clk 0:00:15.5]} 35. Rf6 {[%clk 0:00:29.4]} 35... Kh7 {[%clk 0:00:12.6]} 36.
e5 {[%clk 0:00:17.7]} 36... dxe5 {[%clk 0:00:10]} 37. dxe5 {[%clk 0:00:18.6]}
37... Bg7 {[%clk 0:00:10.3]} 38. Bg8+ {[%clk 0:00:18.4]} 38... Rxg8 {[%clk
0:00:08.8]} 39. Rd8 {[%clk 0:00:19.3]} 39... Rxd8 {[%clk 0:00:08.2]} 40. Ng4
{[%clk 0:00:19.7]} 40... Bxf6 {[%clk 0:00:07.7]} 0-1